[Event "Titled Tuesday Blitz June 28 Early 2022"]
[White "Nakamura, Hikaru"]
[Black "Fedoseev, Vladimir"]
[WhiteFideId "2016192"]
[BlackFideId "24130737"]
[WhiteElo "2850"]
[BlackElo "2726"]
[Result "1/2-1/2"]
[Round "10"]
[TimeControl "180+1"]
[Date "2022.06.28"]
[WhiteClock "0:00:06"]
[BlackClock "0:00:04"]

1. Nf3 {[%clk 0:03:00]}  d5 {[%clk 0:02:59]} 2. e3 {[%clk 0:03:00]}  c5 {[%clk 0:02:59]} 3. b3 {[%clk 0:02:59]}  a6 {[%clk 0:02:59]} 4. Bb2 {[%clk 0:02:58]}  Nc6 {[%clk 0:02:58]} 5. d4 {[%clk 0:02:58]}  Nf6 {[%clk 0:02:56]} 6. dxc5 {[%clk 0:02:49]}  e6 {[%clk 0:02:55]} 7. c4 {[%clk 0:02:50]}  Bxc5 {[%clk 0:02:54]} 8. cxd5 {[%clk 0:02:50]}  exd5 {[%clk 0:02:42]} 9. Be2 {[%clk 0:02:49]}  O-O {[%clk 0:02:42]} 10. O-O {[%clk 0:02:50]}  Re8 {[%clk 0:02:41]} 11. Na3 {[%clk 0:02:48]}  Bf5 {[%clk 0:02:18]} 12. Nc2 {[%clk 0:02:45]}  Rc8 {[%clk 0:02:08]} 13. Ncd4 {[%clk 0:02:41]}  Nxd4 {[%clk 0:02:07]} 14. Nxd4 {[%clk 0:02:39]}  Bg6 {[%clk 0:02:07]} 15. Rc1 {[%clk 0:02:36]}  Qd6 {[%clk 0:02:06]} 16. Bf3 {[%clk 0:02:20]}  h6 {[%clk 0:01:59]} 17. Ne2 {[%clk 0:02:07]}  Be4 {[%clk 0:01:34]} 18. Ng3 {[%clk 0:02:02]}  Qe6 {[%clk 0:01:20]} 19. Bxf6 {[%clk 0:01:50]}  Qxf6 {[%clk 0:01:19]} 20. Bxe4 {[%clk 0:01:40]}  dxe4 {[%clk 0:01:18]} 21. Rc4 {[%clk 0:01:38]}  Bd6 {[%clk 0:00:54]} 22. Rxc8 {[%clk 0:01:25]}  Rxc8 {[%clk 0:00:53]} 23. Qg4 {[%clk 0:01:25]}  Rc2 {[%clk 0:00:39]} 24. Qxe4 {[%clk 0:00:45]}  Rxa2 {[%clk 0:00:35]} 25. Qxb7 {[%clk 0:00:45]}  Bxg3 {[%clk 0:00:32]} 26. hxg3 {[%clk 0:00:46]}  Rb2 {[%clk 0:00:32]} 27. Qc7 {[%clk 0:00:34]}  g6 {[%clk 0:00:20]} 28. Qc4 {[%clk 0:00:32]}  Kg7 {[%clk 0:00:19]} 29. g4 {[%clk 0:00:32]}  a5 {[%clk 0:00:17]} 30. g3 {[%clk 0:00:32]}  Kh7 {[%clk 0:00:10]} 31. Qd5 {[%clk 0:00:30]}  Kg7 {[%clk 0:00:07]} 32. Qc4 {[%clk 0:00:30]}  Kh7 {[%clk 0:00:06]} 33. Kg2 {[%clk 0:00:23]}  Kg7 {[%clk 0:00:06]} 34. Qd5 {[%clk 0:00:24]}  Qc3 {[%clk 0:00:04]} 35. g5 {[%clk 0:00:12]}  hxg5 {[%clk 0:00:03]} 36. Qxg5 {[%clk 0:00:13]}  Qc6+ {[%clk 0:00:03]} 37. Kg1 {[%clk 0:00:12]}  Rxb3 {[%clk 0:00:01]} 38. Qxa5 {[%clk 0:00:13]}  Rb5 {[%clk 0:00:02]} 39. Qa1+ {[%clk 0:00:13]}  Kh7 {[%clk 0:00:02]} 40. Qd4 {[%clk 0:00:12]}  Rh5 {[%clk 0:00:01]} 41. e4 {[%clk 0:00:12]}  Qe6 {[%clk 0:00:01]} 42. Qa7 {[%clk 0:00:09]}  Qh3 {[%clk 0:00:02]} 43. Qxf7+ {[%clk 0:00:09]}  Kh6 {[%clk 0:00:02]} 44. Qf8+ {[%clk 0:00:08]}  Kh7 {[%clk 0:00:03]} 45. Qf7+ {[%clk 0:00:08]}  Kh6 {[%clk 0:00:04]} 46. Qf4+ {[%clk 0:00:09]}  Kh7 {[%clk 0:00:04]} 47. Qf7+ {[%clk 0:00:06]} 1/2-1/2


[Site "https://www.chess.com"]

[Event "Titled Tuesday Blitz June 28 Early 2022"]
[White "Pirvulescu, Ekaterina"]
[Black "Hartikainen, Jarmo"]
[WhiteFideId "13506374"]
[BlackFideId "503134"]
[WhiteElo "1740"]
[BlackElo "2138"]
[Result "1-0"]
[Round "10"]
[TimeControl "180+1"]
[Date "2022.06.28"]
[WhiteClock "0:00:12"]
[BlackClock "0:00:04"]

1. c4 {[%clk 0:02:58]}  Nf6 {[%clk 0:02:55]} 2. Nc3 {[%clk 0:02:57]}  g6 {[%clk 0:02:55]} 3. g3 {[%clk 0:02:58]}  Bg7 {[%clk 0:02:55]} 4. Bg2 {[%clk 0:02:58]}  O-O {[%clk 0:02:54]} 5. e3 {[%clk 0:02:59]}  d6 {[%clk 0:02:55]} 6. d4 {[%clk 0:02:59]}  Nc6 {[%clk 0:02:51]} 7. Nge2 {[%clk 0:03:00]}  Bd7 {[%clk 0:02:43]} 8. O-O {[%clk 0:03:00]}  e5 {[%clk 0:02:44]} 9. d5 {[%clk 0:02:57]}  Ne7 {[%clk 0:02:43]} 10. b3 {[%clk 0:02:57]}  Nh5 {[%clk 0:02:35]} 11. Bb2 {[%clk 0:02:56]}  f5 {[%clk 0:02:35]} 12. Rc1 {[%clk 0:02:54]}  f4 {[%clk 0:01:59]} 13. exf4 {[%clk 0:02:53]}  exf4 {[%clk 0:01:52]} 14. Nd4 {[%clk 0:02:43]}  fxg3 {[%clk 0:01:46]} 15. fxg3 {[%clk 0:02:40]}  Rxf1+ {[%clk 0:01:43]} 16. Bxf1 {[%clk 0:02:38]}  Nf5 {[%clk 0:01:34]} 17. Nxf5 {[%clk 0:02:36]}  Bxf5 {[%clk 0:01:34]} 18. Bd3 {[%clk 0:02:31]}  Qg5 {[%clk 0:01:19]} 19. Bxf5 {[%clk 0:02:14]}  Qxf5 {[%clk 0:01:09]} 20. Qf1 {[%clk 0:02:14]}  Bd4+ {[%clk 0:00:53]} 21. Kg2 {[%clk 0:02:03]}  Re8 {[%clk 0:00:38]} 22. Re1 {[%clk 0:01:28]}  Rxe1 {[%clk 0:00:29]} 23. Qxe1 {[%clk 0:01:27]}  Qc2+ {[%clk 0:00:25]} 24. Kh3 {[%clk 0:00:52]}  Qxb2 {[%clk 0:00:22]} 25. Qe6+ {[%clk 0:00:46]}  Kg7 {[%clk 0:00:20]} 26. Qe7+ {[%clk 0:00:40]}  Kh6 {[%clk 0:00:14]} 27. Ne4 {[%clk 0:00:32]}  Qc1 {[%clk 0:00:05]} 28. Qf8+ {[%clk 0:00:13]}  Bg7 {[%clk 0:00:04]} 29. Qf3 {[%clk 0:00:12]} 1-0


[Site "https://www.chess.com"]

[Event "Titled Tuesday Blitz June 28 Early 2022"]
[White "Nozdrachev, Leonid"]
[Black "Bolanos, Fernando"]
[WhiteFideId "24113433"]
[BlackFideId "3304094"]
[WhiteElo "2129"]
[BlackElo "2048"]
[Result "1-0"]
[Round "10"]
[TimeControl "180+1"]
[Date "2022.06.28"]
[WhiteClock "0:01:53"]
[BlackClock "0:00:35"]

1. e4 {[%clk 0:03:00]}  c5 {[%clk 0:01:21]} 2. c3 {[%clk 0:03:00]}  e5 {[%clk 0:01:20]} 3. Bc4 {[%clk 0:02:59]}  Nf6 {[%clk 0:01:20]} 4. Nf3 {[%clk 0:02:58]}  Nc6 {[%clk 0:01:20]} 5. Ng5 {[%clk 0:02:57]}  d5 {[%clk 0:01:21]} 6. exd5 {[%clk 0:02:57]}  Nxd5 {[%clk 0:01:21]} 7. d4 {[%clk 0:02:56]}  Be7 {[%clk 0:01:13]} 8. Nxf7 {[%clk 0:02:55]}  Kxf7 {[%clk 0:01:13]} 9. Qf3+ {[%clk 0:02:54]}  Ke6 {[%clk 0:01:13]} 10. O-O {[%clk 0:02:51]}  cxd4 {[%clk 0:01:12]} 11. Re1 {[%clk 0:02:49]}  Bf6 {[%clk 0:01:12]} 12. Qe4 {[%clk 0:02:40]}  d3 {[%clk 0:01:09]} 13. Nd2 {[%clk 0:02:24]}  Na5 {[%clk 0:01:06]} 14. Bxd3 {[%clk 0:02:22]}  Kf7 {[%clk 0:00:59]} 15. b4 {[%clk 0:02:16]}  Nf4 {[%clk 0:00:53]} 16. Bf1 {[%clk 0:02:09]}  Nc6 {[%clk 0:00:54]} 17. Nf3 {[%clk 0:01:59]}  Re8 {[%clk 0:00:38]} 18. Bxf4 {[%clk 0:01:54]}  exf4 {[%clk 0:00:36]} 19. Bc4+ {[%clk 0:01:54]}  Be6 {[%clk 0:00:35]} 20. Bxe6+ {[%clk 0:01:54]}  Kf8 {[%clk 0:00:35]} 21. Qxh7 {[%clk 0:01:53]} 1-0


[Site "https://www.chess.com"]

[Event "Titled Tuesday Blitz June 28 Early 2022"]
[White "Ouellet, Maili-Jade"]
[Black "Ivanov, Mike"]
[WhiteFideId "2620472"]
[BlackFideId "2613158"]
[WhiteElo "1899"]
[BlackElo "2182"]
[Result "0-1"]
[Round "10"]
[TimeControl "180+1"]
[Date "2022.06.28"]
[WhiteClock "0:00:02"]
[BlackClock "0:00:17"]

1. d4 {[%clk 0:02:54]}  Nf6 {[%clk 0:02:59]} 2. c4 {[%clk 0:02:51]}  e6 {[%clk 0:02:59]} 3. Nc3 {[%clk 0:02:51]}  Bb4 {[%clk 0:02:59]} 4. f3 {[%clk 0:02:51]}  d5 {[%clk 0:02:54]} 5. a3 {[%clk 0:02:51]}  Bd6 {[%clk 0:02:54]} 6. e4 {[%clk 0:02:41]}  c5 {[%clk 0:02:54]} 7. cxd5 {[%clk 0:02:33]}  cxd4 {[%clk 0:02:50]} 8. Qxd4 {[%clk 0:02:24]}  exd5 {[%clk 0:02:26]} 9. e5 {[%clk 0:01:49]}  Qe7 {[%clk 0:02:15]} 10. f4 {[%clk 0:01:46]}  Bc5 {[%clk 0:02:09]} 11. Bb5+ {[%clk 0:01:37]}  Nc6 {[%clk 0:01:55]} 12. Qd3 {[%clk 0:01:27]}  a6 {[%clk 0:01:14]} 13. Ba4 {[%clk 0:01:16]}  d4 {[%clk 0:01:07]} 14. Nce2 {[%clk 0:01:01]}  Nd5 {[%clk 0:01:03]} 15. Bxc6+ {[%clk 0:00:55]}  bxc6 {[%clk 0:01:03]} 16. Nxd4 {[%clk 0:00:48]}  Bb6 {[%clk 0:00:33]} 17. Ngf3 {[%clk 0:00:44]}  O-O {[%clk 0:00:25]} 18. Nxc6 {[%clk 0:00:21]}  Qc5 {[%clk 0:00:25]} 19. Qxd5 {[%clk 0:00:15]}  Qf2+ {[%clk 0:00:21]} 20. Kd1 {[%clk 0:00:15]}  Be6 {[%clk 0:00:21]} 21. Qd3 {[%clk 0:00:06]}  Rfd8 {[%clk 0:00:20]} 22. Nxd8 {[%clk 0:00:04]}  Rxd8 {[%clk 0:00:21]} 23. Qxd8+ {[%clk 0:00:04]}  Bxd8 {[%clk 0:00:21]} 24. Bd2 {[%clk 0:00:03]}  Qxg2 {[%clk 0:00:18]} 25. Rc1 {[%clk 0:00:02]}  Qxh1+ {[%clk 0:00:17]} 0-1


[Site "https://www.chess.com"]

[Event "Titled Tuesday Blitz June 28 Early 2022"]
[White "Przybylski, Wojciech"]
[Black "Barria Zuniga, Daniel"]
[WhiteFideId "1117599"]
[BlackFideId "3400816"]
[WhiteElo "2133"]
[BlackElo "2414"]
[Result "1-0"]
[Round "10"]
[TimeControl "180+1"]
[Date "2022.06.28"]
[WhiteClock "0:01:46"]
[BlackClock "0:01:02"]

1. e4 {[%clk 0:03:00]}  c5 {[%clk 0:02:59]} 2. Nf3 {[%clk 0:03:00]}  e6 {[%clk 0:02:58]} 3. d4 {[%clk 0:02:59]}  cxd4 {[%clk 0:02:57]} 4. Nxd4 {[%clk 0:02:59]}  a6 {[%clk 0:02:58]} 5. Bd3 {[%clk 0:02:58]}  Bc5 {[%clk 0:02:57]} 6. Nb3 {[%clk 0:02:58]}  Ba7 {[%clk 0:02:57]} 7. Qe2 {[%clk 0:02:57]}  Nc6 {[%clk 0:02:56]} 8. Bd2 {[%clk 0:02:53]}  d6 {[%clk 0:02:49]} 9. O-O {[%clk 0:02:52]}  Nf6 {[%clk 0:02:37]} 10. Kh1 {[%clk 0:02:51]}  O-O {[%clk 0:02:37]} 11. f4 {[%clk 0:02:50]}  e5 {[%clk 0:02:17]} 12. f5 {[%clk 0:02:49]}  d5 {[%clk 0:02:13]} 13. Nc3 {[%clk 0:02:47]}  dxe4 {[%clk 0:02:05]} 14. Nxe4 {[%clk 0:02:46]}  Nxe4 {[%clk 0:02:02]} 15. Qxe4 {[%clk 0:02:33]}  f6 {[%clk 0:02:01]} 16. Rf3 {[%clk 0:02:21]}  Kh8 {[%clk 0:01:17]} 17. Rh3 {[%clk 0:02:15]}  g5 {[%clk 0:01:08]} 18. Bxg5 {[%clk 0:01:48]}  fxg5 {[%clk 0:01:02]} 19. f6 {[%clk 0:01:46]} 1-0


[Site "https://www.chess.com"]

[Event "Titled Tuesday Blitz June 28 Early 2022"]
[White "Rychagov, Andrey"]
[Black "Tifferet, Shaked"]
[WhiteFideId "4119932"]
[BlackFideId "2811529"]
[WhiteElo "2460"]
[BlackElo "2083"]
[Result "0-1"]
[Round "10"]
[TimeControl "180+1"]
[Date "2022.06.28"]
[WhiteClock "0:01:23"]
[BlackClock "0:00:05"]

1. d4 {[%clk 0:03:00]}  d5 {[%clk 0:02:56]} 2. c4 {[%clk 0:03:00]}  e6 {[%clk 0:02:56]} 3. Nf3 {[%clk 0:03:00]}  c6 {[%clk 0:02:55]} 4. Bg5 {[%clk 0:02:59]}  Be7 {[%clk 0:02:52]} 5. Bxe7 {[%clk 0:02:59]}  Nxe7 {[%clk 0:02:53]} 6. e3 {[%clk 0:02:59]}  O-O {[%clk 0:02:51]} 7. Nc3 {[%clk 0:02:57]}  Nd7 {[%clk 0:02:52]} 8. Bd3 {[%clk 0:02:57]}  Nf6 {[%clk 0:02:52]} 9. O-O {[%clk 0:02:57]}  dxc4 {[%clk 0:02:50]} 10. Bxc4 {[%clk 0:02:56]}  b5 {[%clk 0:02:50]} 11. Bd3 {[%clk 0:02:56]}  Bb7 {[%clk 0:02:48]} 12. Rc1 {[%clk 0:02:55]}  Ned5 {[%clk 0:02:40]} 13. Ne4 {[%clk 0:02:53]}  Nxe4 {[%clk 0:02:39]} 14. Bxe4 {[%clk 0:02:53]}  Qd6 {[%clk 0:02:38]} 15. Ne5 {[%clk 0:02:49]}  Rac8 {[%clk 0:02:35]} 16. Nd3 {[%clk 0:02:47]}  Rfd8 {[%clk 0:02:31]} 17. Nc5 {[%clk 0:02:46]}  Ba8 {[%clk 0:02:28]} 18. Qh5 {[%clk 0:02:38]}  Nf6 {[%clk 0:02:27]} 19. Qf3 {[%clk 0:02:37]}  e5 {[%clk 0:02:24]} 20. Rfd1 {[%clk 0:02:34]}  exd4 {[%clk 0:02:02]} 21. Rxd4 {[%clk 0:02:30]}  Qe5 {[%clk 0:02:02]} 22. Qd1 {[%clk 0:02:30]}  Rxd4 {[%clk 0:01:49]} 23. Qxd4 {[%clk 0:02:29]}  Qxd4 {[%clk 0:01:12]} 24. exd4 {[%clk 0:02:29]}  Rd8 {[%clk 0:01:12]} 25. Rd1 {[%clk 0:02:25]}  Nxe4 {[%clk 0:01:10]} 26. Nxe4 {[%clk 0:02:25]}  Bb7 {[%clk 0:01:05]} 27. Nc5 {[%clk 0:02:25]}  Bc8 {[%clk 0:01:05]} 28. f3 {[%clk 0:02:25]}  f6 {[%clk 0:01:04]} 29. Kf2 {[%clk 0:02:24]}  Kf7 {[%clk 0:01:04]} 30. Ke3 {[%clk 0:02:23]}  Re8+ {[%clk 0:00:59]} 31. Kd2 {[%clk 0:02:22]}  g5 {[%clk 0:00:58]} 32. Rc1 {[%clk 0:02:20]}  Rd8 {[%clk 0:00:51]} 33. Kc3 {[%clk 0:02:19]}  a5 {[%clk 0:00:46]} 34. Re1 {[%clk 0:02:17]}  b4+ {[%clk 0:00:27]} 35. Kc4 {[%clk 0:02:17]}  h5 {[%clk 0:00:27]} 36. a3 {[%clk 0:02:10]}  bxa3 {[%clk 0:00:24]} 37. bxa3 {[%clk 0:02:11]}  h4 {[%clk 0:00:21]} 38. Rb1 {[%clk 0:02:10]}  Re8 {[%clk 0:00:19]} 39. Ne4 {[%clk 0:02:04]}  Kg6 {[%clk 0:00:11]} 40. Kc5 {[%clk 0:01:54]}  Bf5 {[%clk 0:00:09]} 41. Kxc6 {[%clk 0:01:36]}  Rxe4 {[%clk 0:00:09]} 42. fxe4 {[%clk 0:01:21]}  Bxe4+ {[%clk 0:00:09]} 43. d5 {[%clk 0:01:21]}  Bxb1 {[%clk 0:00:09]} 44. d6 {[%clk 0:01:22]}  Be4+ {[%clk 0:00:06]} 45. Kc7 {[%clk 0:01:22]}  Bf5 {[%clk 0:00:04]} 46. d7 {[%clk 0:01:22]}  Bxd7 {[%clk 0:00:04]} 47. Kxd7 {[%clk 0:01:23]}  h3 {[%clk 0:00:05]} 0-1


[Site "https://www.chess.com"]

[Event "Titled Tuesday Blitz June 28 Early 2022"]
[White "Samsonkin, Artiom"]
[Black "Gubajdullin, Alexei"]
[WhiteFideId "13503111"]
[BlackFideId "4141202"]
[WhiteElo "2513"]
[BlackElo "2280"]
[Result "1-0"]
[Round "10"]
[TimeControl "180+1"]
[Date "2022.06.28"]
[WhiteClock "0:00:03"]
[BlackClock "0:00:02"]

1. d4 {[%clk 0:03:00]}  Nf6 {[%clk 0:02:59]} 2. Nf3 {[%clk 0:02:59]}  g6 {[%clk 0:02:59]} 3. Nc3 {[%clk 0:02:58]}  d5 {[%clk 0:02:57]} 4. Bf4 {[%clk 0:02:57]}  a6 {[%clk 0:02:56]} 5. Qd2 {[%clk 0:02:54]}  Nbd7 {[%clk 0:02:51]} 6. Ne5 {[%clk 0:02:43]}  Bg7 {[%clk 0:02:43]} 7. Bh6 {[%clk 0:02:40]}  Bxh6 {[%clk 0:02:39]} 8. Qxh6 {[%clk 0:02:39]}  c5 {[%clk 0:02:39]} 9. Nxd7 {[%clk 0:02:22]}  Bxd7 {[%clk 0:02:38]} 10. O-O-O {[%clk 0:01:37]}  Rc8 {[%clk 0:02:32]} 11. dxc5 {[%clk 0:01:23]}  Rxc5 {[%clk 0:02:32]} 12. Qe3 {[%clk 0:01:00]}  Qa5 {[%clk 0:02:29]} 13. h4 {[%clk 0:00:39]}  Bf5 {[%clk 0:02:16]} 14. f3 {[%clk 0:00:33]}  O-O {[%clk 0:01:59]} 15. g4 {[%clk 0:00:31]}  Be6 {[%clk 0:01:56]} 16. h5 {[%clk 0:00:26]}  g5 {[%clk 0:01:34]} 17. h6 {[%clk 0:00:19]}  Kh8 {[%clk 0:01:34]} 18. Qxg5 {[%clk 0:00:19]}  Rg8 {[%clk 0:01:34]} 19. Qe3 {[%clk 0:00:17]}  Rgc8 {[%clk 0:01:33]} 20. g5 {[%clk 0:00:13]}  Rxc3 {[%clk 0:01:25]} 21. bxc3 {[%clk 0:00:13]}  Rxc3 {[%clk 0:01:24]} 22. Qd4 {[%clk 0:00:14]}  Rc4 {[%clk 0:01:06]} 23. Qe5 {[%clk 0:00:07]}  Qxa2 {[%clk 0:01:02]} 24. Qb2 {[%clk 0:00:06]}  Rxc2+ {[%clk 0:00:07]} 25. Kxc2 {[%clk 0:00:02]}  Qc4+ {[%clk 0:00:05]} 26. Kb1 {[%clk 0:00:01]}  Bf5+ {[%clk 0:00:04]} 27. e4 {[%clk 0:00:01]}  Bxe4+ {[%clk 0:00:02]} 28. fxe4 {[%clk 0:00:02]}  Qxe4+ {[%clk 0:00:02]} 29. Bd3 {[%clk 0:00:03]} 1-0


[Site "https://www.chess.com"]

[Event "Titled Tuesday Blitz June 28 Early 2022"]
[White "Samunenkov, Ihor"]
[Black "Jubin Jimmy"]
[WhiteFideId "14187086"]
[BlackFideId "46686614"]
[WhiteElo "2409"]
[BlackElo "2219"]
[Result "1-0"]
[Round "10"]
[TimeControl "180+1"]
[Date "2022.06.28"]
[WhiteClock "0:00:48"]
[BlackClock "0:00:55"]

1. e4 {[%clk 0:03:00]}  c6 {[%clk 0:02:58]} 2. Nf3 {[%clk 0:03:00]}  d5 {[%clk 0:02:59]} 3. Nc3 {[%clk 0:03:00]}  g6 {[%clk 0:03:00]} 4. d4 {[%clk 0:02:58]}  Bg7 {[%clk 0:02:59]} 5. h3 {[%clk 0:02:58]}  dxe4 {[%clk 0:02:59]} 6. Nxe4 {[%clk 0:02:58]}  Nf6 {[%clk 0:03:00]} 7. Nxf6+ {[%clk 0:02:51]}  exf6 {[%clk 0:03:01]} 8. Bc4 {[%clk 0:02:49]}  O-O {[%clk 0:03:01]} 9. O-O {[%clk 0:02:48]}  a5 {[%clk 0:03:02]} 10. a4 {[%clk 0:02:48]}  Na6 {[%clk 0:03:02]} 11. d5 {[%clk 0:02:39]}  cxd5 {[%clk 0:03:01]} 12. Bxd5 {[%clk 0:02:35]}  Nb4 {[%clk 0:03:00]} 13. Bb3 {[%clk 0:02:32]}  Bf5 {[%clk 0:03:00]} 14. Nd4 {[%clk 0:02:29]}  Be4 {[%clk 0:03:00]} 15. Re1 {[%clk 0:02:26]}  f5 {[%clk 0:03:00]} 16. c3 {[%clk 0:02:23]}  Nd3 {[%clk 0:02:55]} 17. Re2 {[%clk 0:02:12]}  Bxd4 {[%clk 0:02:28]} 18. cxd4 {[%clk 0:02:07]}  Qxd4 {[%clk 0:02:29]} 19. Be3 {[%clk 0:02:00]}  Qf6 {[%clk 0:01:56]} 20. f3 {[%clk 0:01:54]}  Nxb2 {[%clk 0:01:47]} 21. Qd4 {[%clk 0:01:52]}  Qxd4 {[%clk 0:01:38]} 22. Bxd4 {[%clk 0:01:53]}  Nd3 {[%clk 0:01:37]} 23. fxe4 {[%clk 0:01:52]}  Rfe8 {[%clk 0:01:34]} 24. Bd5 {[%clk 0:01:43]}  Nf4 {[%clk 0:01:29]} 25. Rd2 {[%clk 0:01:28]}  fxe4 {[%clk 0:01:27]} 26. Bxb7 {[%clk 0:01:28]}  e3 {[%clk 0:01:20]} 27. Bxe3 {[%clk 0:01:26]}  Nxh3+ {[%clk 0:01:10]} 28. gxh3 {[%clk 0:01:17]}  Rab8 {[%clk 0:01:11]} 29. Bb6 {[%clk 0:01:12]}  Rxb7 {[%clk 0:01:08]} 30. Bxa5 {[%clk 0:01:13]}  Re3 {[%clk 0:01:06]} 31. Kg2 {[%clk 0:00:50]}  Rbb3 {[%clk 0:01:04]} 32. Bc7 {[%clk 0:00:50]}  Rxh3 {[%clk 0:00:56]} 33. a5 {[%clk 0:00:50]}  Rhc3 {[%clk 0:00:55]} 34. Rd8+ {[%clk 0:00:48]} 1-0


[Site "https://www.chess.com"]

[Event "Titled Tuesday Blitz June 28 Early 2022"]
[White "Sargissyan, Sargis"]
[Black "Ladopoulos, Dimitrios"]
[WhiteFideId "13303210"]
[BlackFideId "4239580"]
[WhiteElo "2174"]
[BlackElo "2195"]
[Result "1-0"]
[Round "10"]
[TimeControl "180+1"]
[Date "2022.06.28"]
[WhiteClock "0:00:18"]
[BlackClock "0:00:03"]

1. e4 {[%clk 0:03:00]}  e6 {[%clk 0:02:53]} 2. d4 {[%clk 0:03:00]}  d5 {[%clk 0:02:52]} 3. Nc3 {[%clk 0:03:01]}  Nf6 {[%clk 0:02:52]} 4. Bg5 {[%clk 0:03:00]}  dxe4 {[%clk 0:02:48]} 5. Nxe4 {[%clk 0:02:59]}  Be7 {[%clk 0:02:48]} 6. Bxf6 {[%clk 0:03:00]}  gxf6 {[%clk 0:02:48]} 7. c4 {[%clk 0:03:00]}  c6 {[%clk 0:02:48]} 8. Nf3 {[%clk 0:03:00]}  b6 {[%clk 0:02:46]} 9. Qc2 {[%clk 0:02:49]}  Bb7 {[%clk 0:02:46]} 10. O-O-O {[%clk 0:02:49]}  Qc7 {[%clk 0:02:45]} 11. Kb1 {[%clk 0:02:48]}  Nd7 {[%clk 0:02:45]} 12. Bd3 {[%clk 0:02:30]}  O-O-O {[%clk 0:02:44]} 13. Rhe1 {[%clk 0:02:31]}  Kb8 {[%clk 0:02:30]} 14. c5 {[%clk 0:02:24]}  h6 {[%clk 0:02:25]} 15. b4 {[%clk 0:02:13]}  f5 {[%clk 0:01:55]} 16. Ned2 {[%clk 0:02:06]}  Nf6 {[%clk 0:01:46]} 17. Nc4 {[%clk 0:01:43]}  Nd5 {[%clk 0:01:35]} 18. a3 {[%clk 0:01:44]}  Bf6 {[%clk 0:01:24]} 19. Nd6 {[%clk 0:01:30]}  Rxd6 {[%clk 0:01:13]} 20. cxd6 {[%clk 0:01:29]}  Qxd6 {[%clk 0:01:14]} 21. Ne5 {[%clk 0:01:29]}  Rf8 {[%clk 0:01:11]} 22. g3 {[%clk 0:01:20]}  Qc7 {[%clk 0:00:30]} 23. Rc1 {[%clk 0:01:03]}  Rc8 {[%clk 0:00:27]} 24. Bc4 {[%clk 0:00:58]}  c5 {[%clk 0:00:26]} 25. f4 {[%clk 0:00:49]}  cxb4 {[%clk 0:00:12]} 26. Bxd5 {[%clk 0:00:49]}  Bxd5 {[%clk 0:00:10]} 27. Qxc7+ {[%clk 0:00:48]}  Rxc7 {[%clk 0:00:11]} 28. Rxc7 {[%clk 0:00:48]}  Kxc7 {[%clk 0:00:12]} 29. axb4 {[%clk 0:00:46]}  Be7 {[%clk 0:00:11]} 30. b5 {[%clk 0:00:41]}  f6 {[%clk 0:00:10]} 31. Rc1+ {[%clk 0:00:39]}  Kd6 {[%clk 0:00:01]} 32. Nc6 {[%clk 0:00:36]}  Be4+ {[%clk 0:00:01]} 33. Kb2 {[%clk 0:00:35]}  a5 {[%clk 0:00:01]} 34. Nxe7 {[%clk 0:00:29]}  Kxe7 {[%clk 0:00:02]} 35. Rc7+ {[%clk 0:00:19]}  Kd6 {[%clk 0:00:03]} 36. Rh7 {[%clk 0:00:18]} 1-0


[Site "https://www.chess.com"]

[Event "Titled Tuesday Blitz June 28 Early 2022"]
[White "Simonovic, Miroslav"]
[Black "Fernandez Siles, Luis"]
[WhiteFideId "919152"]
[BlackFideId "2209420"]
[WhiteElo "2043"]
[BlackElo "2211"]
[Result "0-1"]
[Round "10"]
[TimeControl "180+1"]
[Date "2022.06.28"]
[WhiteClock "0:01:51"]
[BlackClock "0:02:26"]

1. d4 {[%clk 0:03:00]}  Nf6 {[%clk 0:02:58]} 2. Bg5 {[%clk 0:03:01]}  d5 {[%clk 0:02:56]} 3. Bxf6 {[%clk 0:03:01]}  exf6 {[%clk 0:02:56]} 4. e3 {[%clk 0:03:02]}  Bd6 {[%clk 0:02:55]} 5. a3 {[%clk 0:03:02]}  c6 {[%clk 0:02:55]} 6. c4 {[%clk 0:03:02]}  dxc4 {[%clk 0:02:52]} 7. Bxc4 {[%clk 0:03:03]}  f5 {[%clk 0:02:50]} 8. g3 {[%clk 0:03:02]}  Nd7 {[%clk 0:02:49]} 9. Nc3 {[%clk 0:03:01]}  Nf6 {[%clk 0:02:49]} 10. Nge2 {[%clk 0:02:50]}  Qe7 {[%clk 0:02:47]} 11. O-O {[%clk 0:02:49]}  h5 {[%clk 0:02:47]} 12. h4 {[%clk 0:02:48]}  g5 {[%clk 0:02:43]} 13. hxg5 {[%clk 0:02:47]}  Ng4 {[%clk 0:02:42]} 14. Nf4 {[%clk 0:02:33]}  h4 {[%clk 0:02:38]} 15. g6 {[%clk 0:02:17]}  hxg3 {[%clk 0:02:34]} 16. Bxf7+ {[%clk 0:02:16]}  Kd8 {[%clk 0:02:29]} 17. fxg3 {[%clk 0:01:51]}  Qxe3+ {[%clk 0:02:26]} 0-1


[Site "https://www.chess.com"]

[Event "Titled Tuesday Blitz June 28 Early 2022"]
[White "Starozhilov, Leonid"]
[Black "Ardila, Oscar Humberto"]
[WhiteFideId "14106752"]
[BlackFideId "4404742"]
[WhiteElo "2414"]
[BlackElo "1956"]
[Result "1-0"]
[Round "10"]
[TimeControl "180+1"]
[Date "2022.06.28"]
[WhiteClock "0:00:36"]
[BlackClock "0:01:04"]

1. e4 {[%clk 0:02:54]}  e5 {[%clk 0:02:59]} 2. Nf3 {[%clk 0:02:54]}  Nf6 {[%clk 0:02:57]} 3. Nc3 {[%clk 0:02:53]}  Nc6 {[%clk 0:02:56]} 4. Bb5 {[%clk 0:02:53]}  Bb4 {[%clk 0:02:56]} 5. Bxc6 {[%clk 0:02:53]}  bxc6 {[%clk 0:02:55]} 6. d3 {[%clk 0:02:54]}  O-O {[%clk 0:02:54]} 7. O-O {[%clk 0:02:53]}  d6 {[%clk 0:02:54]} 8. h3 {[%clk 0:02:52]}  h6 {[%clk 0:02:54]} 9. Ne2 {[%clk 0:02:50]}  Qe7 {[%clk 0:02:52]} 10. Ng3 {[%clk 0:02:50]}  Re8 {[%clk 0:02:51]} 11. Nh4 {[%clk 0:02:47]}  d5 {[%clk 0:02:42]} 12. Nhf5 {[%clk 0:02:46]}  Bxf5 {[%clk 0:02:39]} 13. Nxf5 {[%clk 0:02:46]}  Qd7 {[%clk 0:02:39]} 14. Qf3 {[%clk 0:02:43]}  Nh7 {[%clk 0:02:36]} 15. Qg3 {[%clk 0:02:36]}  Bf8 {[%clk 0:02:32]} 16. Bxh6 {[%clk 0:02:24]}  g6 {[%clk 0:02:30]} 17. Rae1 {[%clk 0:02:15]}  Bxh6 {[%clk 0:02:28]} 18. Nxh6+ {[%clk 0:02:15]}  Kg7 {[%clk 0:02:29]} 19. Nf5+ {[%clk 0:02:11]}  Kh8 {[%clk 0:02:26]} 20. Ne3 {[%clk 0:02:05]}  d4 {[%clk 0:02:24]} 21. Nc4 {[%clk 0:02:03]}  Qe6 {[%clk 0:02:20]} 22. f4 {[%clk 0:02:03]}  exf4 {[%clk 0:02:16]} 23. Rxf4 {[%clk 0:01:56]}  c5 {[%clk 0:02:04]} 24. Ref1 {[%clk 0:01:55]}  Re7 {[%clk 0:02:04]} 25. e5 {[%clk 0:01:24]}  Rb8 {[%clk 0:01:58]} 26. Rf6 {[%clk 0:01:14]}  Qd5 {[%clk 0:01:32]} 27. R6f4 {[%clk 0:01:01]}  Kg8 {[%clk 0:01:27]} 28. h4 {[%clk 0:00:56]}  Rxe5 {[%clk 0:01:12]} 29. Rxf7 {[%clk 0:00:40]}  Re6 {[%clk 0:01:04]} 30. Qxc7 {[%clk 0:00:36]} 1-0


[Site "https://www.chess.com"]